fUST/lending_fUST_20250713
["ID","MTS","AMOUNT","RATE_DAILY","PERIOD"]
[371637189,1752371441696,-460.0,0.00020934,2]
[371637190,1752371441705,-460.0,0.00020934,2]
[371637193,1752371441715,-463.30864532,0.00020934,2]
[371637194,1752371441725,-470.17888735,0.00020934,2]
[371637197,1752371441735,-474.7504511,0.00020934,2]
[371637199,1752371441745,-463.00923969,0.00020934,2]
[371637201,1752371441755,-460.0,0.00020934,2]
[371637203,1752371441764,-531.93214709,0.00020934,2]
[371637205,1752371441773,-460.0,0.00020934,2]
[371637207,1752371441783,-477.85156638,0.00020934,2]
[371637209,1752371441792,-468.39873787,0.00020934,2]
[371637211,1752371441802,-460.0,0.00020934,2]
[371637213,1752371441811,-464.08464673,0.00020934,2]
[371637215,1752371441820,-466.57040158,0.00020934,2]
[371637217,1752371441829,-537.29025272,0.00020934,2]
[371637218,1752371441839,-465.6919523,0.00020934,2]
[371637220,1752371441849,-472.28404962,0.00020934,2]
[371637222,1752371441858,-479.66303771,0.00020934,2]
[371637224,1752371441867,-460.0,0.00020934,2]
[371637226,1752371441876,-467.59999402,0.00020934,2]
[371637228,1752371441886,-460.0,0.00020934,2]
[371637230,1752371441895,-460.0,0.00020934,2]
[371637232,1752371441904,-489.70152171,0.00020934,2]
[371637234,1752371441914,-469.87496852,0.00020934,2]
[371637236,1752371441926,-477.13170389,0.00020934,2]
[371637238,1752371441935,-588.91156502,0.00020934,2]
[371637239,1752371441945,-460.0,0.00020934,2]
[371637240,1752371441955,-460.0,0.00020934,2]
[371637241,1752371441964,-466.55252679,0.00020934,2]
[371637242,1752371441973,-460.0,0.00020934,2]
[371637243,1752371441983,-466.57013133,0.00020934,2]
[371637244,1752371441993,-460.81468075,0.00020934,2]
[371637246,1752371442002,-460.0,0.00020934,2]
[371637248,1752371442011,-486.89128138,0.00020934,2]
[371637249,1752371442021,-581.48997077,0.00020934,2]
[371637251,1752371442030,-468.9275782,0.00020934,2]
[371637253,1752371442040,-172.27063826,0.00020934,2]
[371637254,1752371442049,-476.56199832,0.00020934,2]
[371637256,1752371442059,-460.0,0.00020934,2]
[371637258,1752371442068,-466.37016326,0.00020934,2]
[371637260,1752371442077,-403.99717778,0.00020934,2]
[371637262,1752371442087,-484.34785195,0.00020934,2]
[371637264,1752371442097,-460.0,0.00020934,2]
[371637266,1752371442107,-460.0,0.00020934,2]
[371637268,1752371442117,-461.0044925,0.00020934,2]
[371637270,1752371442126,-460.0,0.00020934,2]
[371637272,1752371442135,-460.0,0.00020934,2]
[371637274,1752371442145,-462.05891217,0.00020934,2]
[371637276,1752371442155,-460.0,0.00020934,2]
[371637278,1752371442164,-460.0,0.00020934,2]
[371637280,1752371442173,-463.57320345,0.00020934,2]
[371637282,1752371442182,-460.0,0.00020934,2]
[371637283,1752371442192,-473.04772982,0.00020934,2]
[371637286,1752371442201,-560.04405439,0.00020934,2]
[371637287,1752371442211,-460.0,0.00020934,2]
[371637290,1752371442224,-492.51084399,0.00020934,2]
[371637291,1752371442234,-460.0,0.00020934,2]
[371637294,1752371442244,-460.0,0.00020934,2]
[371637296,1752371442254,-460.0,0.00020934,2]
[371637297,1752371442263,-467.11748803,0.00020934,2]
[371637300,1752371442273,-627.04517952,0.00020934,4]
[371637302,1752371442283,-501.20443078,0.00020973,2]
[371637304,1752371442294,-500.5794027,0.00020973,2]
[371637306,1752371442303,-151.522882,0.0002099,2]
[371637308,1752371442313,-151.0,0.0002099,2]
[371637310,1752371442322,-93050.74076405,0.0002099,2]
[371637312,1752371442331,-881.09122224,0.00021108,2]
[371637314,1752371442343,-467.14112684,0.00021208,2]
[371637316,1752371442352,-468.09591655,0.00021208,2]
[371637318,1752371442363,-464.55432882,0.00021208,2]
[371637320,1752371442372,-470.08953589,0.00021208,2]
[371637322,1752371442382,-464.0924118,0.00021208,2]
[371637324,1752371442393,-465.52497277,0.00021208,2]
[371637326,1752371442402,-464.71048336,0.00021208,2]
[371637328,1752371442411,-466.39004785,0.00021208,2]
[371637330,1752371442421,-448.27901418,0.00021208,2]
[371637332,1752371442431,-460.0,0.00021208,2]
[371637334,1752371442440,-460.0,0.00021208,2]
[371637336,1752371442450,-460.0,0.00021208,2]
[371637338,1752371442459,-460.0,0.00021208,2]
[371637340,1752371442468,-466.84210437,0.00021208,2]
[371637342,1752371442478,-460.0,0.00021208,2]
[371637344,1752371442488,-460.0,0.00021208,2]
[371637346,1752371442497,-460.0,0.00021208,2]
[371637348,1752371442507,-460.0,0.00021208,2]
[371637350,1752371442516,-480.08303695,0.00021208,2]
[371637352,1752371442525,-464.3827885,0.00021208,2]
[371637354,1752371442534,-460.0,0.00021208,2]
[371637356,1752371442543,-460.0,0.00021208,2]
[371637358,1752371442553,-460.0,0.00021208,2]
[371637360,1752371442564,-470.91984795,0.00021208,2]
[371637362,1752371442573,-460.0,0.00021208,2]
[371637364,1752371442582,-460.0,0.00021208,2]
[371637366,1752371442592,-460.0,0.00021208,2]
[371637368,1752371442601,-460.0,0.00021208,2]
[371637370,1752371442611,-507.85982193,0.00021208,2]
[371637372,1752371442619,-484.10220023,0.00021208,2]
[371637374,1752371442629,-482.98522729,0.00021208,2]
[371637376,1752371442639,-465.20938535,0.00021208,2]
[371637378,1752371442648,-478.75190424,0.00021208,2]
[371637380,1752371442658,-162.10816038,0.00021208,2]
[371637382,1752371442667,-481.3449119,0.00021208,2]
[371637384,1752371442677,-220.54098645,0.00021208,2]
[371637386,1752371442687,-460.0,0.00021208,2]
[371637388,1752371442695,-467.10572727,0.00021208,2]
[371637390,1752371442705,-460.0,0.00021208,2]
[371637392,1752371442714,-467.49952648,0.00021208,2]
[371637394,1752371442724,-486.19478448,0.00021208,2]
[371637396,1752371442734,-521.0867885,0.00021208,2]
[371637398,1752371442743,-476.16401477,0.00021208,2]
[371637400,1752371442752,-465.8063343,0.00021208,2]
[371637402,1752371442762,-460.0,0.00021208,2]
[371637404,1752371442771,-492.26058482,0.00021208,2]
[371637405,1752371442781,-460.0,0.00021208,2]
[371637408,1752371442792,-460.0,0.00021208,2]
[371637409,1752371442803,-460.0,0.00021208,2]
[371637411,1752371442814,-460.0,0.00021208,2]
[371637414,1752371442825,-160.0,0.00021209,2]
[371637415,1752371442834,-215.0738,0.00021221,2]
[371637417,1752371442843,-627.04517952,0.00021245,4]
[371637419,1752371442853,-155.13764,0.00021292,2]
[371637421,1752371442864,-248.506016,0.00021472,4]
[371637423,1752371442879,-460.0,0.00021482,2]
[371637425,1752371442890,-466.03056407,0.00021482,2]
[371637427,1752371442900,-460.0,0.00021482,2]
[371637429,1752371442911,-480.9486705,0.00021482,2]
[371637431,1752371442922,-464.62842048,0.00021482,2]
[371637433,1752371442931,-460.0,0.00021482,2]
[371637435,1752371442943,-464.46531425,0.00021482,2]
[371637437,1752371442953,-460.0,0.00021482,2]
[371637439,1752371442963,-460.0,0.00021482,2]
[371637441,1752371442972,-467.18514841,0.00021482,2]
[371637443,1752371442982,-460.0,0.00021482,2]
[371637445,1752371442992,-464.92510244,0.00021482,2]
[371637447,1752371443002,-460.0,0.00021482,2]
[371637449,1752371443011,-460.0,0.00021482,2]
[371637451,1752371443020,-460.0,0.00021482,2]
[371637453,1752371443030,-460.0,0.00021482,2]
[371637455,1752371443039,-491.6616619,0.00021482,2]
[371637457,1752371443049,-460.0,0.00021482,2]
[371637459,1752371443059,-460.0,0.00021482,2]
[371637462,1752371443069,-527.35245545,0.00021482,2]
[371637465,1752371443079,-162.08290879,0.00021482,2]
[371637467,1752371443089,-627.04517952,0.00021555,5]
[371637469,1752371443098,-163.86876543,0.00021583,2]
[371637471,1752371443108,-460.0,0.00021756,2]
[371637473,1752371443118,-464.82455889,0.00021756,2]
[371637475,1752371443127,-460.81049541,0.00021756,2]
[371637477,1752371443137,-460.0,0.00021756,2]
[371637479,1752371443147,-460.0,0.00021756,2]
[371637481,1752371443157,-460.0,0.00021756,2]
[371637483,1752371443167,-460.0,0.00021756,2]
[371637485,1752371443177,-460.0,0.00021756,2]
[371637487,1752371443186,-460.0,0.00021756,2]
[371637489,1752371443196,-334.53240259,0.00021756,2]
[371637491,1752371443205,-460.0,0.00021756,2]
[371637494,1752371443219,-460.0,0.00021756,2]
[371637496,1752371443228,-295209.01158065,0.00021799,2]
[371637499,1752371443449,-1479.29119856,0.00021799,2]
[371637500,1752371443478,-14744.74748405,0.00021799,2]
[371637511,1752371446816,-460.0,0.00020934,2]
[371637512,1752371446826,-466.65,0.00020934,2]
[371637513,1752371446836,-460.0,0.00021208,2]
[371637514,1752371446846,-466.65,0.00021208,2]
[371637515,1752371446856,-460.0,0.00021482,2]
[371637516,1752371446867,-466.65,0.00021482,2]
[371637517,1752371446876,-460.0,0.00021756,2]
[371637518,1752371446887,-466.65,0.00021756,2]
[371637519,1752371446898,-4185.7324239,0.00021799,2]
[371637523,1752371464615,1488.0,0.000273,120]
[371637524,1752371532547,-300.0,0.00016337,2]
[371637525,1752371532571,-1700.0,0.00016338,2]
[371637526,1752371537923,1411.0555542,0.00016238,2]
[371637527,1752371575221,-6000.0,0.00016338,2]
[371637528,1752371671972,-460.97128352,0.00016438,2]
[371637529,1752371671994,-463.72304888,0.00016438,2]
[371637530,1752371672017,-460.89696939,0.00016438,2]
[371637531,1752371672039,-502.66178025,0.00016438,2]
[371637532,1752371672059,-462.50525343,0.00016438,2]
[371637533,1752371672085,-461.94594273,0.00016438,2]
[371637534,1752371672106,-462.41539261,0.00016438,2]
[371637535,1752371672127,-462.70259229,0.00016438,2]
[371637536,1752371672149,-469.00856956,0.00016438,2]
[371637537,1752371672170,-464.2258284,0.00016438,2]
[371637538,1752371672191,-461.56037793,0.00016438,2]
[371637539,1752371672211,-465.97829706,0.00016438,2]
[371637540,1752371672232,-310.51286122,0.00016438,2]
[371637541,1752371672262,-336.61805519,0.00016438,2]
[371637542,1752371672283,-467.12195637,0.00016438,2]
[371637543,1752371672304,-466.41422279,0.00016438,2]
[371637544,1752371672325,-464.20695165,0.00016438,2]
[371637546,1752371690753,466.48360078,0.00016438,2]
[371637547,1752371764081,460.0,0.00016438,2]
[371637548,1752371764335,460.0,0.00016712,2]
[371637549,1752371764582,460.0,0.00016986,2]
[371637550,1752371776906,460.0,0.00016438,2]
[371637551,1752371777145,50.04701595,0.00016712,2]
[371637553,1752371809126,245.417484,0.00013699,2]
[371637591,1752372507808,10000.0,0.00024658,60]
[371637613,1752372632089,-300.0,0.000177,2]
[371637614,1752372632101,-31131.30836716,0.00017701,2]
[371637615,1752372632114,-786.25379238,0.00017701,2]
[371637621,1752372637911,-1426.99931377,0.00017701,2]
[371637622,1752372637921,-160.0,0.00017801,2]
[371637623,1752372637932,-230.68503973,0.00017801,2]
[371637624,1752372637942,-838.53376533,0.00017801,2]
[371637625,1752372637951,-836.956561,0.00017801,2]
[371637626,1752372637961,-160.0,0.00017801,2]
[371637627,1752372637971,-214.29528141,0.00017802,2]
[371637628,1752372637981,-4295.52127165,0.00017802,2]
[371637629,1752372637993,-6662.27740003,0.00017802,2]
[371637792,1752372639791,-774.77,0.00017802,2]
[371637795,1752372639803,-865.74977168,0.00017802,2]
[371637797,1752372639813,-67.49498057,0.00018521,2]
[371637801,1752372639845,-106.52851053,0.00018521,2]
[371637803,1752372639855,-1101.75496142,0.000189,2]
[371637805,1752372639866,-1101.75496128,0.00019141,2]
[371637807,1752372639876,-170.522793,0.00019178,2]
[371637809,1752372639888,-156.0,0.00019319,2]
[371637811,1752372639899,-787.15977101,0.00019383,2]
[371637813,1752372639924,-314.59519027,0.00019383,2]
[371637816,1752372639951,-102.05971309,0.00019624,2]
[371637818,1752372639966,-340.365,0.00019624,2]
[371637821,1752372639979,-659.33024819,0.00019624,2]
[371637824,1752372639990,-904.68929482,0.00019866,2]
[371638123,1752372642936,-197.06566646,0.00019866,2]
[371638125,1752372642946,-239.497449,0.0002,2]
[371638127,1752372642956,-1101.75496128,0.00020107,2]
[371638129,1752372642966,-245.417484,0.00020187,2]
[371638131,1752372642975,-496.23371663,0.00020348,3]
[371638133,1752372642988,-605.52124465,0.00020348,3]
[371638136,1752372642998,-41.84063234,0.0002059,3]
[371638138,1752372643010,-1059.91432894,0.0002059,3]
[371638140,1752372643020,-355.731,0.00020643,2]
[371638142,1752372643030,-207.4,0.00020793,2]
[371638144,1752372643040,-6912.642,0.00020793,2]
[371638146,1752372643051,-391.93779902,0.00020821,2]
[371638148,1752372643061,-1101.75496128,0.00020831,4]
[371638150,1752372643072,-4132.66930393,0.00020848,2]
[371638154,1752372643095,-275.5607214,0.00020848,2]
[371638156,1752372643107,-1994.81907834,0.00020848,2]
[371638158,1752372643117,-174.757501,0.00020905,2]
[371638160,1752372643126,-151.59225639,0.00020921,2]
[371638162,1752372643136,-151.58994691,0.00020921,2]
[371638164,1752372643147,-239.74369616,0.00020921,2]
[371638166,1752372643158,-760.25630384,0.00020921,2]
[371638168,1752372643168,-1000.0,0.00020921,2]
[371638170,1752372643178,-1000.0,0.00020921,2]
[371638172,1752372643188,-19695.2159211,0.00020921,2]
[371638175,1752372643200,-2199.99646509,0.00020921,2]
[371638177,1752372643211,-542.075,0.00020921,2]
[371638179,1752372643224,-2562.71261381,0.00020921,2]
[371638181,1752372643234,-1000.0,0.00020921,2]
[371638183,1752372643244,-1000.0,0.00020921,2]
[371638185,1752372643254,-151.0,0.00020921,2]
[371638187,1752372643264,-1000.0,0.00020921,2]
[371638189,1752372643274,-151.0,0.00020921,2]
[371638191,1752372643284,-1000.0,0.00020921,2]
[371638193,1752372643294,-151.0,0.00020921,2]
[371638195,1752372643303,-1000.0,0.00020921,2]
[371638197,1752372643313,-151.0,0.00020921,2]
[371638199,1752372643323,-529.34982459,0.00020921,2]
[371638335,1752372645862,-495.98156377,0.00020921,2]
[371638336,1752372645872,-151.0,0.00020921,2]
[371638337,1752372645882,-151.0,0.00020921,2]
[371638338,1752372645891,-151.0,0.00020921,2]
[371638339,1752372645901,-151.0,0.00020921,2]
[371638340,1752372645912,-151.0,0.00020921,2]
[371638341,1752372645922,-151.0,0.00020921,2]
[371638342,1752372645932,-151.0,0.00020921,2]
[371638343,1752372645942,-151.0,0.00020921,2]
[371638344,1752372645952,-151.0,0.00020921,2]
[371638345,1752372645967,-152.24654196,0.00020921,2]
[371638346,1752372645978,-151.0,0.00020921,2]
[371638347,1752372645988,-151.0,0.00020921,2]
[371638348,1752372645998,-151.0,0.00020921,2]
[371638349,1752372646008,-151.0,0.00020921,2]
[371638350,1752372646017,-151.0,0.00020921,2]
[371638351,1752372646027,-151.0,0.00020921,2]
[371638352,1752372646037,-151.0,0.00020921,2]
[371638353,1752372646047,-151.0,0.00020921,2]
[371638354,1752372646057,-151.0,0.00020921,2]
[371638355,1752372646066,-151.0,0.00020921,2]
[371638356,1752372646076,-151.0,0.00020921,2]
[371638357,1752372646085,-151.0,0.00020921,2]
[371638358,1752372646095,-151.0,0.00020921,2]
[371638359,1752372646104,-151.0,0.00020921,2]
[371638360,1752372646114,-151.0,0.00020921,2]
[371638361,1752372646123,-151.0,0.00020921,2]
[371638362,1752372646134,-151.0,0.00020921,2]
[371638363,1752372646145,-151.0,0.00020921,2]
[371638364,1752372646154,-151.0,0.00020921,2]
[371638365,1752372646164,-151.0,0.00020921,2]
[371638366,1752372646174,-151.0,0.00020921,2]
[371638367,1752372646183,-151.0,0.00020921,2]
[371638368,1752372646193,-151.0,0.00020921,2]
[371638369,1752372646203,-151.0,0.00020921,2]
[371638370,1752372646213,-151.0,0.00020921,2]
[371638371,1752372646222,-535.28924959,0.00020934,2]
[371638372,1752372646232,-461.39993285,0.00020934,2]
[371638373,1752372646241,-460.75215065,0.00020934,2]
[371638374,1752372646251,-460.67903075,0.00020934,2]
[371638375,1752372646260,-462.80415667,0.00020934,2]
[371638376,1752372646270,-463.28722548,0.00020934,2]
[371638377,1752372646279,-461.38541855,0.00020934,2]
[371638379,1752372646288,-461.13663336,0.00020934,2]
[371638380,1752372646298,-463.99034184,0.00020934,2]
[371638381,1752372646307,-461.25432327,0.00020934,2]
[371638382,1752372646317,-465.47598296,0.00020934,2]
[371638383,1752372646326,-269.1284063,0.00020934,2]
[371638384,1752372646336,-467.73325824,0.00020934,2]
[371638385,1752372646345,-462.61617131,0.00020934,2]
[371638386,1752372646354,-462.14487278,0.00020934,2]
[371638387,1752372646363,-461.60832233,0.00020934,2]
[371638388,1752372646373,-460.0,0.00020934,2]
[371638389,1752372646382,-463.07578326,0.00020934,2]
[371638390,1752372646392,-467.16507438,0.00020934,2]
[371638391,1752372646401,-463.67410782,0.00020934,2]
[371638392,1752372646410,-404.2144102,0.00020934,2]
[371638393,1752372646420,-460.0,0.00020934,2]
[371638394,1752372646429,-460.0,0.00020934,2]
[371638395,1752372646438,-460.0,0.00020934,2]
[371638396,1752372646448,-460.0,0.00020934,2]
[371638397,1752372646458,-460.0,0.00020934,2]
[371638398,1752372646467,-460.0,0.00020934,2]
[371638399,1752372646477,-469.4646915,0.00020934,2]
[371638400,1752372646487,-460.0,0.00020934,2]
[371638402,1752372646497,-212.97037449,0.00020934,2]
[371638403,1752372646506,-363.04401446,0.00020934,2]
[371638404,1752372646516,-460.0,0.00020934,2]
[371638405,1752372646525,-460.0,0.00020934,2]
[371638406,1752372646535,-460.0,0.00020934,2]
[371638407,1752372646551,-460.0,0.00020934,2]
[371638408,1752372646560,-460.0,0.00020934,2]
[371638409,1752372646571,-460.0,0.00020934,2]
[371638410,1752372646588,-454.83798052,0.00020934,2]
[371638411,1752372646608,-474.43771608,0.00020934,2]
[371638412,1752372646630,-443.45821287,0.00020934,2]
[371638413,1752372646646,-460.0,0.00020934,2]
[371638414,1752372646656,-460.0,0.00020934,2]
[371638415,1752372646666,-460.0,0.00020934,2]
[371638416,1752372646676,-460.0,0.00020934,2]
[371638417,1752372646686,-154.11700291,0.00020934,2]
[371638418,1752372646696,-460.0,0.00020934,2]
[371638419,1752372646706,-275.00759333,0.00020934,2]
[371638420,1752372646715,-471.57230657,0.00020934,2]
[371638421,1752372646725,-468.41965024,0.00020934,2]
[371638422,1752372646735,-460.0,0.00020934,2]
[371638423,1752372646744,-469.89778365,0.00020934,2]
[371638424,1752372646754,-460.0,0.00020934,2]
[371638425,1752372646763,-464.93641897,0.00020934,2]
[371638426,1752372646774,-151.0,0.00020934,2]
[371638427,1752372646783,-460.0,0.00020934,2]
[371638428,1752372646793,-597.53652439,0.00020934,2]
[371638429,1752372646803,-463.78135921,0.00020934,2]
[371638430,1752372646813,-466.93466384,0.00020934,2]
[371638431,1752372646822,-460.0,0.00020934,2]
[371638432,1752372646831,-460.0,0.00020934,2]
[371638433,1752372646841,-460.0,0.00020934,2]
[371638434,1752372646852,-460.0,0.00020934,2]
[371638435,1752372646862,-460.0,0.00020934,2]
[371638436,1752372646873,-460.0,0.00020934,2]
[371638437,1752372646883,-460.0,0.00020934,2]
[371638438,1752372646894,-460.0,0.00020934,2]
[371638439,1752372646903,-460.0,0.00020934,2]
[371638440,1752372646913,-460.0,0.00020934,2]
[371638441,1752372646923,-460.0,0.00020934,2]
[371638442,1752372646933,-460.0,0.00020934,2]
[371638443,1752372646942,-460.0,0.00020934,2]
[371638444,1752372646951,-465.62847669,0.00020934,2]
[371638445,1752372646960,-460.0,0.00020934,2]
[371638446,1752372646969,-460.0,0.00020934,2]
[371638447,1752372646979,-464.45555877,0.00020934,2]
[371638448,1752372646988,-460.0,0.00020934,2]
[371638449,1752372646998,-460.0,0.00020934,2]
[371638450,1752372647007,-460.0,0.00020934,2]
[371638451,1752372647016,-468.4438691,0.00020934,2]
[371638452,1752372647026,-460.0,0.00020934,2]
[371638453,1752372647035,-460.0,0.00020934,2]
[371638454,1752372647045,-468.29090664,0.00020934,2]
[371638455,1752372647055,-460.0,0.00020934,2]
[371638456,1752372647065,-565.52248974,0.00020934,2]
[371638457,1752372647075,-460.0,0.00020934,2]
[371638458,1752372647084,-460.0,0.00020934,2]
[371638459,1752372647094,-460.0,0.00020934,2]
[371638460,1752372647104,-460.0,0.00020934,2]
[371638461,1752372647113,-460.0,0.00020934,2]
[371638462,1752372647123,-465.63575735,0.00020934,2]
[371638463,1752372647134,-462.97303259,0.00020934,2]
[371638464,1752372647144,-460.0,0.00020934,2]
[371638465,1752372647154,-460.0,0.00020934,2]
[371638466,1752372647164,-461.57321346,0.00020934,2]
[371638467,1752372647174,-460.0,0.00020934,2]
[371638468,1752372647184,-462.2648309,0.00020934,2]
[371638469,1752372647326,-460.0,0.00020934,2]
[371638470,1752372647336,-460.0,0.00020934,2]
[371638471,1752372647346,-464.21161945,0.00020934,2]
[371638473,1752372647355,-460.0,0.00020934,2]
[371638475,1752372647365,-460.0,0.00020934,2]
[371638477,1752372647374,-1402.33,0.00020934,2]
[371638478,1752372647384,-460.0,0.00020934,2]
[371638480,1752372647394,-460.0,0.00020934,2]
[371638482,1752372647403,-460.0,0.00020934,2]
[371638483,1752372647412,-463.04511423,0.00020934,2]
[371638484,1752372647423,-460.0,0.00020934,2]
[371638485,1752372647433,-460.0,0.00020934,2]
[371638486,1752372647443,-460.0,0.00020934,2]
[371638487,1752372647452,-460.0,0.00020934,2]
[371638488,1752372647462,-460.0,0.00020934,2]
[371638489,1752372647471,-460.0,0.00020934,2]
[371638490,1752372647481,-151.0,0.00020934,2]
[371638491,1752372647490,-460.0,0.00020934,2]
[371638492,1752372647500,-755.1,0.00020934,2]
[371638493,1752372647509,-151.23751426,0.00020934,2]
[371638494,1752372647519,-154.65534338,0.00020934,2]
[371638495,1752372647529,-460.0,0.00020934,2]
[371638496,1752372647539,-153.15425432,0.00020934,2]
[371638497,1752372647548,-152.54608783,0.00020934,2]
[371638498,1752372647558,-151.0,0.00020934,2]
[371638499,1752372647569,-460.0,0.00020934,2]
[371638500,1752372647580,-460.0,0.00020934,2]
[371638501,1752372647592,-460.0,0.00020934,2]
[371638502,1752372647604,-460.0,0.00020934,2]
[371638503,1752372647614,-465.36377876,0.00020934,2]
[371638504,1752372647624,-460.0,0.00020934,2]
[371638505,1752372647636,-465.16136815,0.00020934,2]
[371638506,1752372647645,-224.09989709,0.00020934,2]
[371638507,1752372647656,-460.0,0.00020934,2]
[371638508,1752372647669,-460.0,0.00020934,2]
[371638509,1752372647678,-460.0,0.00020934,2]
[371638510,1752372647688,-512.86,0.00020934,2]
[371638511,1752372647697,-460.0,0.00020934,2]
[371638512,1752372647707,-500.0,0.00020934,2]
[371638513,1752372647717,-151.0,0.00020934,2]
[371638514,1752372647727,-460.0,0.00020934,2]
[371638515,1752372647736,-151.0,0.00020934,2]
[371638516,1752372647746,-460.0,0.00020934,2]
[371638517,1752372647756,-500.0,0.00020934,2]
[371638518,1752372647766,-151.60980888,0.00020934,2]
[371638519,1752372647775,-250.57782193,0.00020934,2]
[371638520,1752372647785,-460.0,0.00020934,2]
[371638521,1752372647794,-460.0,0.00020934,2]
[371638522,1752372647804,-760.97,0.00020934,2]
[371638523,1752372647814,-460.0,0.00020934,2]
[371638524,1752372647823,-460.0,0.00020934,2]
[371638525,1752372647833,-460.0,0.00020934,2]
[371638526,1752372647843,-460.0,0.00020934,2]
[371638527,1752372647853,-460.0,0.00020934,2]
[371638528,1752372647862,-460.0,0.00020934,2]
[371638529,1752372647872,-460.0,0.00020934,2]
[371638530,1752372647881,-561.30545914,0.00020934,2]
[371638531,1752372647892,-460.0,0.00020934,2]
[371638532,1752372647902,-460.0,0.00020934,2]
[371638533,1752372647911,-460.0,0.00020934,2]
[371638534,1752372647922,-936.51,0.00020934,2]
[371638535,1752372647931,-460.0,0.00020934,2]
[371638536,1752372647940,-460.0,0.00020934,2]
[371638537,1752372647950,-460.0,0.00020934,2]
[371638538,1752372647960,-460.0,0.00020934,2]
[371638539,1752372647969,-460.0,0.00020934,2]
[371638540,1752372647978,-460.0,0.00020934,2]
[371638541,1752372647988,-200.52802804,0.00020934,2]
[371638542,1752372647998,-460.0,0.00020934,2]
[371638543,1752372648008,-460.0,0.00020934,2]
[371638544,1752372648018,-151.46465383,0.00020934,2]
[371638545,1752372648027,-151.49799938,0.00020934,2]
[371638546,1752372648038,-151.27045628,0.00020934,2]
[371638547,1752372648048,-152.30845962,0.00020934,2]
[371638548,1752372648058,-460.0,0.00020934,2]
[371638549,1752372648068,-460.0,0.00020934,2]
[371638550,1752372648078,-475.60804735,0.00020934,2]
[371638551,1752372648088,-464.40994765,0.00020934,2]
[371638552,1752372648098,-462.66237575,0.00020934,2]
[371638553,1752372648109,-460.0,0.00020934,2]
[371638554,1752372648119,-460.0,0.00020934,2]
[371638555,1752372648129,-460.0,0.00020934,2]
[371638556,1752372648140,-460.0,0.00020934,2]
[371638557,1752372648151,-460.0,0.00020934,2]
[371638558,1752372648161,-460.0,0.00020934,2]
[371638559,1752372648171,-460.0,0.00020934,2]
[371638560,1752372648181,-460.0,0.00020934,2]
[371638561,1752372648191,-464.94878386,0.00020934,2]
[371638562,1752372648201,-1062.87,0.00020934,2]
[371638563,1752372648210,-460.0,0.00020934,2]
[371638564,1752372648220,-460.0,0.00020934,2]
[371638565,1752372648229,-460.0,0.00020934,2]
[371638566,1752372648239,-460.0,0.00020934,2]
[371638567,1752372648249,-460.0,0.00020934,2]
[371638568,1752372648258,-814.39,0.00020934,2]
[371638569,1752372648268,-571.54331668,0.00020934,2]
[371638570,1752372648278,-460.0,0.00020934,2]
[371638571,1752372648287,-151.94844608,0.00020961,2]
[371638572,1752372648296,-151.0,0.00020961,2]
[371638573,1752372648306,-151.0,0.00020961,2]
[371638574,1752372648315,-500.0,0.00020961,2]
[371638575,1752372648324,-151.0,0.00020961,2]
[371638576,1752372648333,-151.0,0.00020961,2]
[371638577,1752372648343,-500.0,0.00020961,2]
[371638578,1752372648352,-500.0,0.00020973,2]
[371638579,1752372648361,-151.0,0.00020989,2]